[Event "Titled Tuesday Blitz July 26 Early 2022"]
[White "Hoang, Canh Huan"]
[Black "Lopez Del Alamo, Antonio"]
[WhiteFideId "12400599"]
[BlackFideId "2227339"]
[WhiteElo "2264"]
[BlackElo "2079"]
[Result "0-1"]
[Round "07"]
[TimeControl "180+1"]
[Date "2022.07.27"]
[WhiteClock "0:00:07"]
[BlackClock "0:00:03"]

1. Nf3 {[%clk 0:03:00]}  g6 {[%clk 0:02:58]} 2. d4 {[%clk 0:02:59]}  Bg7 {[%clk 0:02:53]} 3. c3 {[%clk 0:02:57]}  d6 {[%clk 0:02:51]} 4. Bf4 {[%clk 0:02:57]}  Nf6 {[%clk 0:02:48]} 5. h3 {[%clk 0:02:58]}  O-O {[%clk 0:02:46]} 6. e3 {[%clk 0:02:58]}  b6 {[%clk 0:02:47]} 7. Bd3 {[%clk 0:02:59]}  Bb7 {[%clk 0:02:45]} 8. Nbd2 {[%clk 0:02:59]}  Nbd7 {[%clk 0:02:44]} 9. O-O {[%clk 0:02:59]}  c5 {[%clk 0:02:38]} 10. Bh2 {[%clk 0:02:58]}  Rc8 {[%clk 0:02:37]} 11. Qe2 {[%clk 0:02:55]}  Re8 {[%clk 0:02:30]} 12. Rfd1 {[%clk 0:02:53]}  Qc7 {[%clk 0:02:29]} 13. Rac1 {[%clk 0:02:53]}  Qb8 {[%clk 0:02:23]} 14. Bb5 {[%clk 0:02:52]}  Qa8 {[%clk 0:02:21]} 15. Ba6 {[%clk 0:02:41]}  Bxa6 {[%clk 0:02:12]} 16. Qxa6 {[%clk 0:02:42]}  Nb8 {[%clk 0:02:12]} 17. Qe2 {[%clk 0:02:35]}  Qb7 {[%clk 0:02:11]} 18. a4 {[%clk 0:02:35]}  Nc6 {[%clk 0:02:06]} 19. Nb3 {[%clk 0:02:11]}  Ne4 {[%clk 0:01:52]} 20. Nfd2 {[%clk 0:01:59]}  Nxd2 {[%clk 0:01:44]} 21. Nxd2 {[%clk 0:02:00]}  Na5 {[%clk 0:01:31]} 22. b4 {[%clk 0:01:52]}  cxb4 {[%clk 0:01:28]} 23. cxb4 {[%clk 0:01:53]}  Nc6 {[%clk 0:01:28]} 24. Rb1 {[%clk 0:01:47]}  Nb8 {[%clk 0:01:27]} 25. b5 {[%clk 0:01:43]}  Nd7 {[%clk 0:01:24]} 26. Rdc1 {[%clk 0:01:42]}  Nf6 {[%clk 0:01:22]} 27. Nb3 {[%clk 0:01:40]}  Nd5 {[%clk 0:01:18]} 28. Qd2 {[%clk 0:01:34]}  f5 {[%clk 0:01:17]} 29. Qa2 {[%clk 0:01:19]}  Kh8 {[%clk 0:01:12]} 30. Qb2 {[%clk 0:01:14]}  Rxc1+ {[%clk 0:01:03]} 31. Rxc1 {[%clk 0:01:14]}  Rc8 {[%clk 0:01:04]} 32. Nd2 {[%clk 0:01:13]}  Kg8 {[%clk 0:00:54]} 33. Kf1 {[%clk 0:01:09]}  Kf7 {[%clk 0:00:52]} 34. Ke2 {[%clk 0:01:09]}  Ke8 {[%clk 0:00:51]} 35. f3 {[%clk 0:01:05]}  Kd7 {[%clk 0:00:49]} 36. Kd3 {[%clk 0:00:56]}  a5 {[%clk 0:00:44]} 37. e4 {[%clk 0:00:55]}  fxe4+ {[%clk 0:00:43]} 38. fxe4 {[%clk 0:00:55]}  Nf6 {[%clk 0:00:42]} 39. d5 {[%clk 0:00:50]}  Nxd5 {[%clk 0:00:39]} 40. Qxg7 {[%clk 0:00:48]}  Rxc1 {[%clk 0:00:38]} 41. exd5 {[%clk 0:00:35]}  Qxd5+ {[%clk 0:00:35]} 42. Ke2 {[%clk 0:00:35]}  Rc2 {[%clk 0:00:32]} 43. Bf4 {[%clk 0:00:32]}  Qxg2+ {[%clk 0:00:18]} 44. Ke3 {[%clk 0:00:30]}  Qxd2+ {[%clk 0:00:17]} 45. Kf3 {[%clk 0:00:29]}  Qe2+ {[%clk 0:00:17]} 46. Kg3 {[%clk 0:00:29]}  Rc3+ {[%clk 0:00:15]} 47. Qxc3 {[%clk 0:00:28]}  Qe4 {[%clk 0:00:13]} 48. Be3 {[%clk 0:00:23]}  Qxa4 {[%clk 0:00:08]} 49. Qc6+ {[%clk 0:00:22]}  Ke6 {[%clk 0:00:09]} 50. Bxb6 {[%clk 0:00:20]}  Qb3+ {[%clk 0:00:07]} 51. Kf2 {[%clk 0:00:20]}  a4 {[%clk 0:00:08]} 52. Qc8+ {[%clk 0:00:19]}  Kf7 {[%clk 0:00:08]} 53. Be3 {[%clk 0:00:11]}  a3 {[%clk 0:00:06]} 54. Qa8 {[%clk 0:00:11]}  Qxb5 {[%clk 0:00:06]} 55. Qxa3 {[%clk 0:00:11]}  Qf5+ {[%clk 0:00:07]} 56. Kg3 {[%clk 0:00:11]}  h5 {[%clk 0:00:04]} 57. Qb3+ {[%clk 0:00:10]}  e6 {[%clk 0:00:02]} 58. Qb7+ {[%clk 0:00:10]}  Kf6 {[%clk 0:00:03]} 59. Qb2+ {[%clk 0:00:09]}  e5 {[%clk 0:00:03]} 60. Qd2 {[%clk 0:00:08]}  Ke6 {[%clk 0:00:03]} 61. Bg5 {[%clk 0:00:08]}  Qe4 {[%clk 0:00:03]} 62. Be3 {[%clk 0:00:09]}  Qd5 {[%clk 0:00:03]} 63. Qf2 {[%clk 0:00:08]}  Qe4 {[%clk 0:00:03]} 64. Qa2+ {[%clk 0:00:08]}  d5 {[%clk 0:00:02]} 65. Bf2 {[%clk 0:00:08]}  Qd3+ {[%clk 0:00:01]} 66. Kg2 {[%clk 0:00:09]}  e4 {[%clk 0:00:01]} 67. Qb2 {[%clk 0:00:08]}  Qf3+ {[%clk 0:00:02]} 68. Kg1 {[%clk 0:00:07]}  Kf5 {[%clk 0:00:03]} 69. Kh2 {[%clk 0:00:07]}  e3 {[%clk 0:00:03]} 70. Bg3 {[%clk 0:00:06]}  e2 {[%clk 0:00:03]} 71. Qc2+ {[%clk 0:00:06]}  Ke6 {[%clk 0:00:04]} 72. Qc8+ {[%clk 0:00:07]}  Ke7 {[%clk 0:00:03]} 73. Qc7+ {[%clk 0:00:07]}  Ke6 {[%clk 0:00:04]} 74. Qc6+ {[%clk 0:00:07]}  Kf5 {[%clk 0:00:04]} 75. Qd7+ {[%clk 0:00:07]}  Ke4 {[%clk 0:00:05]} 76. Qe6+ {[%clk 0:00:05]}  Kd3 {[%clk 0:00:05]} 77. Qxg6+ {[%clk 0:00:05]}  Kd2 {[%clk 0:00:05]} 78. Qg5+ {[%clk 0:00:02]}  Kd1 {[%clk 0:00:05]} 79. Qg6 {[%clk 0:00:02]}  e1=Q {[%clk 0:00:06]} 80. Qb1+ {[%clk 0:00:03]}  Kd2 {[%clk 0:00:05]} 81. Qxe1+ {[%clk 0:00:04]}  Kd3 {[%clk 0:00:06]} 82. Qb1+ {[%clk 0:00:04]}  Kd4 {[%clk 0:00:05]} 83. Qb2+ {[%clk 0:00:04]}  Ke4 {[%clk 0:00:04]} 84. Qd2 {[%clk 0:00:04]}  Qe3 {[%clk 0:00:03]} 85. Qc2+ {[%clk 0:00:04]}  Qd3 {[%clk 0:00:03]} 86. Qg2+ {[%clk 0:00:05]}  Qf3 {[%clk 0:00:03]} 87. Qc2+ {[%clk 0:00:06]}  Qd3 {[%clk 0:00:02]} 88. Qc7 {[%clk 0:00:06]}  Qf3 {[%clk 0:00:02]} 89. Kg1 {[%clk 0:00:06]}  Kd3 {[%clk 0:00:02]} 90. Kh2 {[%clk 0:00:06]}  Ke3 {[%clk 0:00:02]} 91. Qc3+ {[%clk 0:00:06]}  Ke2 {[%clk 0:00:02]} 92. Qc2+ {[%clk 0:00:06]}  Ke3 {[%clk 0:00:02]} 93. Qc3+ {[%clk 0:00:06]}  Ke2 {[%clk 0:00:03]} 94. Qe5+ {[%clk 0:00:07]}  Qe3 {[%clk 0:00:03]} 95. Qxh5+ {[%clk 0:00:07]}  Qf3 {[%clk 0:00:03]} 96. Qe5+ {[%clk 0:00:07]}  Kf1 {[%clk 0:00:04]} 97. Qd4 {[%clk 0:00:07]}  Qg2# {[%clk 0:00:03]} 0-1


[Site "https://www.chess.com"]

[Event "Titled Tuesday Blitz July 26 Early 2022"]
[White "Jarmula, Lukasz"]
[Black "Rychagov, Andrey"]
[WhiteFideId "1160664"]
[BlackFideId "4119932"]
[WhiteElo "2246"]
[BlackElo "2481"]
[Result "0-1"]
[Round "07"]
[TimeControl "180+1"]
[Date "2022.07.26"]
[WhiteClock "0:00:13"]
[BlackClock "0:00:13"]

1. e4 {[%clk 0:03:00]}  e6 {[%clk 0:02:59]} 2. d4 {[%clk 0:03:00]}  d5 {[%clk 0:02:59]} 3. e5 {[%clk 0:03:01]}  c5 {[%clk 0:02:59]} 4. c3 {[%clk 0:03:01]}  Qb6 {[%clk 0:02:59]} 5. Nf3 {[%clk 0:03:02]}  Nc6 {[%clk 0:02:59]} 6. a3 {[%clk 0:03:01]}  Nh6 {[%clk 0:02:56]} 7. Bd3 {[%clk 0:03:01]}  Bd7 {[%clk 0:02:50]} 8. O-O {[%clk 0:02:57]}  cxd4 {[%clk 0:02:45]} 9. b4 {[%clk 0:02:57]}  a6 {[%clk 0:02:39]} 10. Bb2 {[%clk 0:02:34]}  Be7 {[%clk 0:02:30]} 11. cxd4 {[%clk 0:02:32]}  Nf5 {[%clk 0:02:30]} 12. Bxf5 {[%clk 0:02:31]}  exf5 {[%clk 0:02:30]} 13. Nc3 {[%clk 0:02:32]}  Be6 {[%clk 0:02:30]} 14. Na4 {[%clk 0:02:31]}  Qd8 {[%clk 0:02:29]} 15. Nc5 {[%clk 0:02:31]}  b6 {[%clk 0:02:22]} 16. Nxe6 {[%clk 0:02:30]}  fxe6 {[%clk 0:02:22]} 17. Rc1 {[%clk 0:02:30]}  Qd7 {[%clk 0:02:22]} 18. Qc2 {[%clk 0:02:23]}  Na7 {[%clk 0:02:03]} 19. Qc7 {[%clk 0:02:18]}  Bd8 {[%clk 0:01:59]} 20. Qc2 {[%clk 0:02:11]}  O-O {[%clk 0:01:52]} 21. Qe2 {[%clk 0:02:11]}  Qb5 {[%clk 0:01:50]} 22. Qxb5 {[%clk 0:02:11]}  axb5 {[%clk 0:01:40]} 23. Ne1 {[%clk 0:02:05]}  Bg5 {[%clk 0:01:33]} 24. f4 {[%clk 0:02:02]}  Be7 {[%clk 0:01:29]} 25. Nd3 {[%clk 0:02:00]}  Rfc8 {[%clk 0:01:27]} 26. Kf2 {[%clk 0:01:56]}  Rc4 {[%clk 0:01:27]} 27. Ke2 {[%clk 0:01:50]}  Rac8 {[%clk 0:01:27]} 28. Kd2 {[%clk 0:01:50]}  g5 {[%clk 0:01:25]} 29. g3 {[%clk 0:01:49]}  Kf7 {[%clk 0:01:25]} 30. Bc3 {[%clk 0:01:47]}  Rg8 {[%clk 0:01:12]} 31. Nb2 {[%clk 0:01:46]}  Rc6 {[%clk 0:01:12]} 32. Nd3 {[%clk 0:01:38]}  h5 {[%clk 0:01:03]} 33. Ke2 {[%clk 0:01:35]}  Rgc8 {[%clk 0:01:00]} 34. Bd2 {[%clk 0:01:34]}  Rc4 {[%clk 0:00:57]} 35. Be3 {[%clk 0:01:28]}  Rc2+ {[%clk 0:00:39]} 36. Bd2 {[%clk 0:01:21]}  gxf4 {[%clk 0:00:39]} 37. gxf4 {[%clk 0:01:20]}  R2c4 {[%clk 0:00:37]} 38. Be3 {[%clk 0:01:20]}  Nc6 {[%clk 0:00:37]} 39. Kd2 {[%clk 0:01:10]}  Rg8 {[%clk 0:00:35]} 40. Rf2 {[%clk 0:01:07]}  Nxd4 {[%clk 0:00:32]} 41. Bxd4 {[%clk 0:01:03]}  Rxd4 {[%clk 0:00:32]} 42. Rc7 {[%clk 0:01:03]}  Ra8 {[%clk 0:00:25]} 43. Rc3 {[%clk 0:00:43]}  Rc4 {[%clk 0:00:24]} 44. Rb3 {[%clk 0:00:40]}  Rac8 {[%clk 0:00:24]} 45. Ke3 {[%clk 0:00:37]}  Re4+ {[%clk 0:00:24]} 46. Kd2 {[%clk 0:00:37]}  Rec4 {[%clk 0:00:22]} 47. Ke3 {[%clk 0:00:37]}  Bh4 {[%clk 0:00:20]} 48. Rg2 {[%clk 0:00:33]}  Rc2 {[%clk 0:00:20]} 49. Rxc2 {[%clk 0:00:29]}  Rxc2 {[%clk 0:00:20]} 50. Rb2 {[%clk 0:00:30]}  Rc3 {[%clk 0:00:19]} 51. Ra2 {[%clk 0:00:26]}  Be7 {[%clk 0:00:16]} 52. Kd4 {[%clk 0:00:25]}  Rc4+ {[%clk 0:00:16]} 53. Ke3 {[%clk 0:00:25]}  Re4+ {[%clk 0:00:16]} 54. Kf3 {[%clk 0:00:26]}  Rd4 {[%clk 0:00:16]} 55. Ke3 {[%clk 0:00:25]}  Re4+ {[%clk 0:00:16]} 56. Kf3 {[%clk 0:00:25]}  Rc4 {[%clk 0:00:17]} 57. Ke3 {[%clk 0:00:23]}  h4 {[%clk 0:00:17]} 58. Kf3 {[%clk 0:00:22]}  h3 {[%clk 0:00:17]} 59. Ke3 {[%clk 0:00:23]}  Re4+ {[%clk 0:00:16]} 60. Kf3 {[%clk 0:00:23]}  Bh4 {[%clk 0:00:16]} 61. Rc2 {[%clk 0:00:21]}  Rc4 {[%clk 0:00:16]} 62. Rc1 {[%clk 0:00:17]}  d4 {[%clk 0:00:15]} 63. Ke2 {[%clk 0:00:16]}  Rc3 {[%clk 0:00:14]} 64. Kd2 {[%clk 0:00:16]}  Rxc1 {[%clk 0:00:13]} 65. Nxc1 {[%clk 0:00:15]}  Bg3 {[%clk 0:00:13]} 66. hxg3 {[%clk 0:00:13]}  h2 {[%clk 0:00:13]} 0-1


[Site "https://www.chess.com"]

[Event "Titled Tuesday Blitz July 26 Early 2022"]
[White "Kravtsiv, Martyn"]
[Black "Domingo Nunez, Ruben"]
[WhiteFideId "14113147"]
[BlackFideId "22245570"]
[WhiteElo "2694"]
[BlackElo "2373"]
[Result "1-0"]
[Round "07"]
[TimeControl "180+1"]
[Date "2022.07.26"]
[WhiteClock "0:01:40"]
[BlackClock "0:01:48"]

1. e4 {[%clk 0:03:00]}  Nc6 {[%clk 0:02:56]} 2. Nf3 {[%clk 0:02:59]}  d5 {[%clk 0:02:57]} 3. exd5 {[%clk 0:02:58]}  Qxd5 {[%clk 0:02:58]} 4. Nc3 {[%clk 0:02:58]}  Qa5 {[%clk 0:02:58]} 5. Bb5 {[%clk 0:02:53]}  Bg4 {[%clk 0:02:55]} 6. h3 {[%clk 0:02:51]}  Bh5 {[%clk 0:02:53]} 7. g4 {[%clk 0:02:37]}  Bg6 {[%clk 0:02:54]} 8. Ne5 {[%clk 0:02:37]}  Be4 {[%clk 0:02:40]} 9. f3 {[%clk 0:02:25]}  f6 {[%clk 0:02:37]} 10. Nc4 {[%clk 0:02:23]}  Qb4 {[%clk 0:02:15]} 11. fxe4 {[%clk 0:02:23]}  O-O-O {[%clk 0:02:15]} 12. Bxc6 {[%clk 0:02:21]}  Qxc4 {[%clk 0:02:15]} 13. Bd5 {[%clk 0:02:21]}  Qa6 {[%clk 0:02:15]} 14. Qe2 {[%clk 0:02:20]}  Qd6 {[%clk 0:02:15]} 15. d3 {[%clk 0:02:18]}  e6 {[%clk 0:02:15]} 16. Bb3 {[%clk 0:02:18]}  h5 {[%clk 0:02:16]} 17. gxh5 {[%clk 0:02:16]}  a6 {[%clk 0:02:05]} 18. Be3 {[%clk 0:02:14]}  Qe5 {[%clk 0:02:04]} 19. O-O-O {[%clk 0:02:12]}  Bb4 {[%clk 0:02:03]} 20. d4 {[%clk 0:02:08]}  Qa5 {[%clk 0:02:03]} 21. Bxe6+ {[%clk 0:02:07]}  Kb8 {[%clk 0:02:04]} 22. Nd5 {[%clk 0:02:04]}  Bd6 {[%clk 0:02:04]} 23. Kb1 {[%clk 0:02:02]}  Re8 {[%clk 0:02:04]} 24. Bf7 {[%clk 0:02:02]}  Rxe4 {[%clk 0:02:04]} 25. Qf3 {[%clk 0:01:53]}  f5 {[%clk 0:02:03]} 26. Bd2 {[%clk 0:01:41]}  Qa4 {[%clk 0:01:50]} 27. Nc3 {[%clk 0:01:40]}  Qd7 {[%clk 0:01:48]} 28. Bxg8 {[%clk 0:01:40]} 1-0


[Site "https://www.chess.com"]

[Event "Titled Tuesday Blitz July 26 Early 2022"]
[White "Kubicka, Anna"]
[Black "Karttunen, Mika"]
[WhiteFideId "1152254"]
[BlackFideId "502081"]
[WhiteElo "2025"]
[BlackElo "2343"]
[Result "1-0"]
[Round "07"]
[TimeControl "180+1"]
[Date "2022.07.27"]
[WhiteClock "0:00:16"]
[BlackClock "0:00:01"]

1. e4 {[%clk 0:03:00]}  c5 {[%clk 0:02:59]} 2. Ne2 {[%clk 0:03:00]}  d6 {[%clk 0:02:53]} 3. g3 {[%clk 0:03:00]}  Nc6 {[%clk 0:02:52]} 4. Bg2 {[%clk 0:03:01]}  e5 {[%clk 0:02:52]} 5. O-O {[%clk 0:03:01]}  h5 {[%clk 0:02:51]} 6. h4 {[%clk 0:03:00]}  Bg4 {[%clk 0:02:49]} 7. c3 {[%clk 0:02:59]}  Nf6 {[%clk 0:02:35]} 8. f3 {[%clk 0:02:56]}  Be6 {[%clk 0:02:34]} 9. d4 {[%clk 0:02:56]}  cxd4 {[%clk 0:02:28]} 10. cxd4 {[%clk 0:02:57]}  exd4 {[%clk 0:02:28]} 11. Nxd4 {[%clk 0:02:56]}  Qb6 {[%clk 0:02:28]} 12. Be3 {[%clk 0:02:55]}  Qxb2 {[%clk 0:02:24]} 13. Nxe6 {[%clk 0:02:53]}  fxe6 {[%clk 0:02:24]} 14. Nd2 {[%clk 0:02:51]}  d5 {[%clk 0:01:55]} 15. exd5 {[%clk 0:02:44]}  Nxd5 {[%clk 0:01:55]} 16. Bf2 {[%clk 0:02:44]}  O-O-O {[%clk 0:01:30]} 17. Nc4 {[%clk 0:02:44]}  Qb5 {[%clk 0:01:25]} 18. Qe2 {[%clk 0:02:40]}  Kb8 {[%clk 0:01:19]} 19. a4 {[%clk 0:02:21]}  Qa6 {[%clk 0:01:18]} 20. Rfc1 {[%clk 0:02:17]}  Bb4 {[%clk 0:01:18]} 21. Bf1 {[%clk 0:02:13]}  Rhe8 {[%clk 0:01:12]} 22. Qb2 {[%clk 0:02:08]}  Na5 {[%clk 0:00:31]} 23. Na3 {[%clk 0:01:31]}  Qd6 {[%clk 0:00:30]} 24. Nb5 {[%clk 0:01:26]}  Qe7 {[%clk 0:00:24]} 25. Bxa7+ {[%clk 0:01:25]}  Ka8 {[%clk 0:00:24]} 26. Bf2 {[%clk 0:01:22]}  Rc8 {[%clk 0:00:25]} 27. Qd4 {[%clk 0:01:15]}  Nc6 {[%clk 0:00:21]} 28. Qe4 {[%clk 0:01:04]}  Ba5 {[%clk 0:00:18]} 29. Bc5 {[%clk 0:00:58]}  Qf6 {[%clk 0:00:13]} 30. Nd6 {[%clk 0:00:55]}  Qb2 {[%clk 0:00:07]} 31. Nxc8 {[%clk 0:00:50]}  Rxc8 {[%clk 0:00:07]} 32. Qxe6 {[%clk 0:00:49]}  Nce7 {[%clk 0:00:05]} 33. Rab1 {[%clk 0:00:28]}  Qd2 {[%clk 0:00:04]} 34. Rd1 {[%clk 0:00:18]}  Qc3 {[%clk 0:00:01]} 35. Bxe7 {[%clk 0:00:16]} 1-0


[Site "https://www.chess.com"]

[Event "Titled Tuesday Blitz July 26 Early 2022"]
[White "Kupervaser, Erez"]
[Black "Molina, Roberto Junio Brito"]
[WhiteFideId "2814587"]
[BlackFideId "2109450"]
[WhiteElo "1832"]
[BlackElo "2432"]
[Result "0-1"]
[Round "07"]
[TimeControl "180+1"]
[Date "2022.07.27"]
[WhiteClock "0:01:08"]
[BlackClock "0:01:44"]

1. e4 {[%clk 0:03:00]}  c6 {[%clk 0:03:00]} 2. d4 {[%clk 0:02:58]}  d5 {[%clk 0:03:01]} 3. e5 {[%clk 0:02:58]}  Bf5 {[%clk 0:03:01]} 4. c4 {[%clk 0:02:58]}  e6 {[%clk 0:03:00]} 5. Nc3 {[%clk 0:02:59]}  Ne7 {[%clk 0:02:59]} 6. Nf3 {[%clk 0:02:58]}  dxc4 {[%clk 0:02:57]} 7. Bxc4 {[%clk 0:02:57]}  Nd7 {[%clk 0:02:57]} 8. h3 {[%clk 0:02:54]}  Nb6 {[%clk 0:02:57]} 9. Bd3 {[%clk 0:02:54]}  Bxd3 {[%clk 0:02:56]} 10. Qxd3 {[%clk 0:02:55]}  Qd7 {[%clk 0:02:56]} 11. O-O {[%clk 0:02:50]}  Ned5 {[%clk 0:02:54]} 12. Ne4 {[%clk 0:02:50]}  h6 {[%clk 0:02:54]} 13. Bd2 {[%clk 0:02:49]}  a5 {[%clk 0:02:52]} 14. a3 {[%clk 0:02:48]}  Be7 {[%clk 0:02:50]} 15. Rac1 {[%clk 0:02:46]}  a4 {[%clk 0:02:48]} 16. Rfd1 {[%clk 0:02:42]}  O-O {[%clk 0:02:46]} 17. g4 {[%clk 0:02:42]}  f5 {[%clk 0:02:36]} 18. exf6 {[%clk 0:02:19]}  Bxf6 {[%clk 0:02:33]} 19. Nc5 {[%clk 0:02:15]}  Qf7 {[%clk 0:02:31]} 20. Qe2 {[%clk 0:01:58]}  Rae8 {[%clk 0:02:28]} 21. Re1 {[%clk 0:01:54]}  Nc7 {[%clk 0:02:21]} 22. Kg2 {[%clk 0:01:53]}  Nbd5 {[%clk 0:01:59]} 23. Nxa4 {[%clk 0:01:47]}  Nb5 {[%clk 0:01:58]} 24. Qe4 {[%clk 0:01:26]}  Bxd4 {[%clk 0:01:51]} 25. Rc4 {[%clk 0:01:08]}  Nd6 {[%clk 0:01:44]} 0-1


[Site "https://www.chess.com"]

[Event "Titled Tuesday Blitz July 26 Early 2022"]
[White "Le, Tuan Minh"]
[Black "Pichot, Alan"]
[WhiteFideId "12401153"]
[BlackFideId "110973"]
[WhiteElo "2530"]
[BlackElo "2579"]
[Result "1-0"]
[Round "07"]
[TimeControl "180+1"]
[Date "2022.07.26"]
[WhiteClock "0:00:39"]
[BlackClock "0:00:01"]

1. d4 {[%clk 0:03:00]}  Nf6 {[%clk 0:02:59]} 2. Nf3 {[%clk 0:03:00]}  e6 {[%clk 0:02:59]} 3. Bf4 {[%clk 0:03:01]}  Be7 {[%clk 0:02:57]} 4. e3 {[%clk 0:03:01]}  Nh5 {[%clk 0:02:56]} 5. Bg3 {[%clk 0:03:01]}  Nxg3 {[%clk 0:02:56]} 6. hxg3 {[%clk 0:03:02]}  O-O {[%clk 0:02:45]} 7. Bd3 {[%clk 0:03:03]}  h6 {[%clk 0:02:45]} 8. c3 {[%clk 0:02:58]}  d6 {[%clk 0:02:44]} 9. Nbd2 {[%clk 0:02:52]}  Nd7 {[%clk 0:02:45]} 10. e4 {[%clk 0:02:51]}  e5 {[%clk 0:02:44]} 11. O-O {[%clk 0:02:51]}  b6 {[%clk 0:02:44]} 12. Re1 {[%clk 0:02:51]}  Bb7 {[%clk 0:02:44]} 13. Nf1 {[%clk 0:02:52]}  Re8 {[%clk 0:02:44]} 14. Ne3 {[%clk 0:02:51]}  Bf8 {[%clk 0:02:44]} 15. Qc2 {[%clk 0:02:51]}  a6 {[%clk 0:02:44]} 16. a4 {[%clk 0:02:50]}  g6 {[%clk 0:02:43]} 17. Rad1 {[%clk 0:02:49]}  Bg7 {[%clk 0:02:43]} 18. dxe5 {[%clk 0:02:44]}  Nxe5 {[%clk 0:02:36]} 19. Nxe5 {[%clk 0:02:43]}  Rxe5 {[%clk 0:02:37]} 20. f3 {[%clk 0:02:23]}  b5 {[%clk 0:02:31]} 21. axb5 {[%clk 0:02:16]}  axb5 {[%clk 0:02:31]} 22. Qb3 {[%clk 0:02:12]}  Qe8 {[%clk 0:02:27]} 23. Ng4 {[%clk 0:02:02]}  Rg5 {[%clk 0:02:13]} 24. e5 {[%clk 0:01:49]}  dxe5 {[%clk 0:01:18]} 25. Bxb5 {[%clk 0:01:48]}  Bc6 {[%clk 0:01:18]} 26. Bxc6 {[%clk 0:01:33]}  Qxc6 {[%clk 0:01:19]} 27. Qd5 {[%clk 0:01:32]}  Qxd5 {[%clk 0:01:18]} 28. Rxd5 {[%clk 0:01:32]}  h5 {[%clk 0:01:19]} 29. Nf2 {[%clk 0:01:32]}  Rf5 {[%clk 0:01:06]} 30. Ne4 {[%clk 0:01:29]}  Bf8 {[%clk 0:00:55]} 31. b4 {[%clk 0:01:11]}  Ra6 {[%clk 0:00:35]} 32. Rd7 {[%clk 0:01:07]}  Rc6 {[%clk 0:00:35]} 33. Kh2 {[%clk 0:01:03]}  h4 {[%clk 0:00:27]} 34. gxh4 {[%clk 0:00:57]}  Rh5 {[%clk 0:00:27]} 35. g4 {[%clk 0:00:46]}  Rxh4+ {[%clk 0:00:20]} 36. Kg3 {[%clk 0:00:46]}  Rh7 {[%clk 0:00:21]} 37. g5 {[%clk 0:00:42]}  f5 {[%clk 0:00:12]} 38. Nf6+ {[%clk 0:00:41]}  Rxf6 {[%clk 0:00:12]} 39. Rxh7 {[%clk 0:00:42]}  Rc6 {[%clk 0:00:13]} 40. Rd7 {[%clk 0:00:40]}  Rxc3 {[%clk 0:00:13]} 41. Ra1 {[%clk 0:00:41]}  e4 {[%clk 0:00:07]} 42. Ra8 {[%clk 0:00:41]}  Rxf3+ {[%clk 0:00:06]} 43. Kg2 {[%clk 0:00:41]}  Rd3 {[%clk 0:00:06]} 44. Rxc7 {[%clk 0:00:40]}  f4 {[%clk 0:00:04]} 45. Rcc8 {[%clk 0:00:39]}  Rg3+ {[%clk 0:00:04]} 46. Kh2 {[%clk 0:00:39]}  Kf7 {[%clk 0:00:01]} 47. Rxf8+ {[%clk 0:00:39]} 1-0


[Site "https://www.chess.com"]

[Event "Titled Tuesday Blitz July 26 Early 2022"]
[White "Lubbe, Nikolas"]
[Black "Hafiz, Arif Abdul"]
[WhiteFideId "4694031"]
[BlackFideId "7104227"]
[WhiteElo "2447"]
[BlackElo "2198"]
[Result "0-1"]
[Round "07"]
[TimeControl "180+1"]
[Date "2022.07.26"]
[WhiteClock "0:00:02"]
[BlackClock "0:00:07"]

1. d4 {[%clk 0:03:00]}  Nc6 {[%clk 0:03:00]} 2. Nc3 {[%clk 0:03:01]}  e5 {[%clk 0:02:59]} 3. dxe5 {[%clk 0:03:00]}  Nxe5 {[%clk 0:03:00]} 4. g3 {[%clk 0:02:59]}  Bc5 {[%clk 0:02:56]} 5. Bg2 {[%clk 0:02:56]}  Nf6 {[%clk 0:02:56]} 6. Na4 {[%clk 0:02:47]}  Bb4+ {[%clk 0:02:50]} 7. Bd2 {[%clk 0:02:43]}  Qe7 {[%clk 0:02:50]} 8. Nh3 {[%clk 0:02:39]}  Nc4 {[%clk 0:02:45]} 9. Bxb4 {[%clk 0:02:23]}  Qxb4+ {[%clk 0:02:46]} 10. c3 {[%clk 0:02:23]}  Qe7 {[%clk 0:02:32]} 11. b3 {[%clk 0:02:20]}  Ne5 {[%clk 0:02:29]} 12. c4 {[%clk 0:02:11]}  d6 {[%clk 0:02:23]} 13. Nf4 {[%clk 0:02:07]}  O-O {[%clk 0:02:19]} 14. O-O {[%clk 0:02:06]}  c6 {[%clk 0:02:18]} 15. Qd2 {[%clk 0:02:02]}  Bf5 {[%clk 0:02:18]} 16. Rad1 {[%clk 0:02:00]}  Rad8 {[%clk 0:02:19]} 17. Rfe1 {[%clk 0:01:56]}  Rfe8 {[%clk 0:02:15]} 18. h3 {[%clk 0:01:29]}  g5 {[%clk 0:02:11]} 19. Nd3 {[%clk 0:01:27]}  h6 {[%clk 0:02:12]} 20. Nxe5 {[%clk 0:01:25]}  dxe5 {[%clk 0:02:12]} 21. Qe3 {[%clk 0:01:25]}  b5 {[%clk 0:01:50]} 22. Nc5 {[%clk 0:01:19]}  bxc4 {[%clk 0:01:41]} 23. bxc4 {[%clk 0:01:19]}  e4 {[%clk 0:01:29]} 24. Nb3 {[%clk 0:01:14]}  Qb4 {[%clk 0:01:23]} 25. Qc5 {[%clk 0:01:08]}  Qxc5 {[%clk 0:01:16]} 26. Nxc5 {[%clk 0:01:09]}  Rxd1 {[%clk 0:01:16]} 27. Rxd1 {[%clk 0:01:09]}  Re5 {[%clk 0:01:16]} 28. Nb3 {[%clk 0:01:05]}  Be6 {[%clk 0:01:02]} 29. Rd6 {[%clk 0:00:56]}  e3 {[%clk 0:00:54]} 30. Rxc6 {[%clk 0:00:51]}  exf2+ {[%clk 0:00:48]} 31. Kxf2 {[%clk 0:00:52]}  Ne4+ {[%clk 0:00:48]} 32. Bxe4 {[%clk 0:00:51]}  Rxe4 {[%clk 0:00:49]} 33. Nd2 {[%clk 0:00:49]}  Rd4 {[%clk 0:00:45]} 34. Ke3 {[%clk 0:00:49]}  Rd7 {[%clk 0:00:44]} 35. h4 {[%clk 0:00:47]}  gxh4 {[%clk 0:00:41]} 36. gxh4 {[%clk 0:00:48]}  Kg7 {[%clk 0:00:41]} 37. Nf3 {[%clk 0:00:41]}  Rb7 {[%clk 0:00:38]} 38. Nd4 {[%clk 0:00:37]}  Bg4 {[%clk 0:00:38]} 39. Kf4 {[%clk 0:00:36]}  h5 {[%clk 0:00:19]} 40. c5 {[%clk 0:00:33]}  Rb4 {[%clk 0:00:18]} 41. e3 {[%clk 0:00:33]}  Ra4 {[%clk 0:00:19]} 42. Rc7 {[%clk 0:00:21]}  Rxa2 {[%clk 0:00:19]} 43. c6 {[%clk 0:00:22]}  a5 {[%clk 0:00:19]} 44. Ra7 {[%clk 0:00:22]}  a4 {[%clk 0:00:19]} 45. c7 {[%clk 0:00:22]}  Rc2 {[%clk 0:00:18]} 46. Nb5 {[%clk 0:00:19]}  Rc4+ {[%clk 0:00:17]} 47. Ke5 {[%clk 0:00:18]}  Rc5+ {[%clk 0:00:17]} 48. Kd6 {[%clk 0:00:16]}  Rxb5 {[%clk 0:00:17]} 49. Rxa4 {[%clk 0:00:16]}  Rb6+ {[%clk 0:00:16]} 50. Ke7 {[%clk 0:00:14]}  Rc6 {[%clk 0:00:16]} 51. Kd8 {[%clk 0:00:12]}  Kf6 {[%clk 0:00:15]} 52. Rf4+ {[%clk 0:00:11]}  Kg6 {[%clk 0:00:15]} 53. e4 {[%clk 0:00:09]}  f6 {[%clk 0:00:13]} 54. Rf2 {[%clk 0:00:09]}  Kf7 {[%clk 0:00:14]} 55. Rd2 {[%clk 0:00:09]}  Be6 {[%clk 0:00:11]} 56. Rd4 {[%clk 0:00:05]}  Rc5 {[%clk 0:00:09]} 57. Rd3 {[%clk 0:00:05]}  Rc4 {[%clk 0:00:09]} 58. Rd6 {[%clk 0:00:05]}  Rc3 {[%clk 0:00:06]} 59. Rd4 {[%clk 0:00:05]}  Bg4 {[%clk 0:00:03]} 60. Rd6 {[%clk 0:00:05]}  Rc4 {[%clk 0:00:03]} 61. Rd5 {[%clk 0:00:03]}  Rc6 {[%clk 0:00:03]} 62. e5 {[%clk 0:00:03]}  Re6 {[%clk 0:00:03]} 63. Rd7+ {[%clk 0:00:01]}  Kf8 {[%clk 0:00:03]} 64. c8=Q {[%clk 0:00:01]}  Re8+ {[%clk 0:00:04]} 65. Kc7 {[%clk 0:00:02]}  Rxc8+ {[%clk 0:00:04]} 66. Kxc8 {[%clk 0:00:03]}  fxe5 {[%clk 0:00:05]} 67. Kc7 {[%clk 0:00:03]}  Bxd7 {[%clk 0:00:06]} 68. Kxd7 {[%clk 0:00:02]}  e4 {[%clk 0:00:07]} 0-1


[Site "https://www.chess.com"]